bitfinex/quotes_BTCUSD_20241223
["timestamp","ask_amount","ask_price","bid_price","bid_amount"]
[1734954415763,0.0759,95958.0,95957.0,0.00072728]
[1734954416043,0.208426,95957.0,95948.0,0.15]
[1734954416261,0.208426,95957.0,95949.0,0.10398632]
[1734954416667,0.203466,95957.0,95949.0,0.10398632]
[1734954417779,0.00130276,95956.0,95949.0,0.10398632]
[1734954418414,0.208431,95955.0,95949.0,0.10398632]
[1734954418652,0.208435,95953.0,95949.0,0.10498632]
[1734954418880,0.208435,95953.0,95949.0,0.004]
[1734954418881,0.00130276,95952.0,95949.0,0.004]
[1734954419069,0.00130276,95952.0,95948.0,0.01473472]
[1734954419557,0.00130276,95952.0,95949.0,0.005]
[1734954419772,0.24171416,95951.0,95949.0,0.001]
[1734954419959,0.00130286,95950.0,95949.0,0.00653443]
[1734954420604,0.00130286,95950.0,95949.0,0.00553443]
[1734954421058,0.00130286,95950.0,95949.0,0.00753443]
[1734954421285,0.00130286,95950.0,95949.0,0.00253443]
[1734954421538,0.00130286,95950.0,95949.0,0.00053443]
[1734954421764,0.100229,95980.0,95949.0,0.00053443]
[1734954421765,0.001,95952.0,95950.0,0.208441]
[1734954422000,0.001,95952.0,95951.0,0.25398632]
[1734954422216,0.001,95952.0,95951.0,0.27184817]
[1734954422689,0.079,95961.0,95952.0,0.208437]
[1734954422897,0.079,95961.0,95953.0,0.31242132]
[1734954423112,0.079,95961.0,95953.0,0.3302823]
[1734954423759,0.079,95961.0,95956.0,0.208426]
[1734954423978,0.079,95961.0,95957.0,0.10398632]
[1734954424413,0.079,95961.0,95957.0,0.12184555]
[1734954426116,0.00130265,95960.0,95957.0,0.12284555]
[1734954426918,0.00130265,95960.0,95957.0,0.12784555]
[1734954427264,0.00130265,95960.0,95957.0,0.12684555]
[1734954427470,0.00130265,95960.0,95957.0,0.12884555]
[1734954427690,0.208422,95959.0,95957.0,0.02485923]
[1734954427917,0.12950271,95958.0,95957.0,0.02285923]
[1734954428132,0.12950271,95958.0,95949.0,0.00053443]
[1734954428336,0.208441,95950.0,95949.0,0.00053443]
[1734954428543,0.285541,95950.0,95949.0,0.00053443]
[1734954429185,0.30210218,95950.0,95949.0,0.00053443]
[1734954429633,0.30210218,95950.0,95949.0,0.00062013]
[1734954429840,0.30210218,95950.0,95949.0,0.00562013]
[1734954430715,0.30210218,95950.0,95949.0,0.00662013]
[1734954432458,0.30210218,95950.0,95949.0,0.00162013]
[1734954432878,0.30210218,95950.0,95949.0,0.00562013]
[1734954433289,0.30210218,95950.0,95949.0,0.00462013]
[1734954433704,0.30210218,95950.0,95949.0,0.00562013]
[1734954434130,0.30210218,95950.0,95949.0,0.00462013]
[1734954434337,0.30310218,95950.0,95949.0,0.00462013]
[1734954434539,0.30310218,95950.0,95949.0,0.00062013]
[1734954436470,0.35080218,95950.0,95949.0,0.00062013]
[1734954438440,0.5547885,95950.0,95949.0,0.00062013]
[1734954438724,0.5547885,95950.0,95935.0,8.56e-05]
[1734954438725,0.337072,95936.0,95935.0,8.56e-05]
[1734954438962,0.1,95932.0,95923.0,1.139e-05]
[1734954439205,0.288398,95924.0,95923.0,1.139e-05]
[1734954440902,0.288398,95924.0,95923.0,0.00101139]
[1734954441102,0.0799,95924.0,95923.0,0.00101139]
[1734954441273,0.0812033,95924.0,95923.0,0.00101139]
[1734954441681,0.0013033,95924.0,95923.0,0.00101139]
[1734954441902,0.07160013,95924.0,95923.0,0.00101139]
[1734954442106,0.07160013,95924.0,95923.0,0.00301139]
[1734954443575,0.07160013,95924.0,95906.0,0.15772226]
[1734954443817,0.0013033,95924.0,95923.0,0.02723939]
[1734954444023,0.208495,95926.0,95912.0,0.20857539]
[1734954444231,0.00130327,95925.0,95923.0,0.02738671]
[1734954444471,0.00130327,95925.0,95916.0,0.208514]
[1734954444472,0.02859893,95925.0,95916.0,0.208514]
[1734954444669,0.00130324,95924.0,95923.0,0.002]
[1734954444916,0.00130324,95924.0,95917.0,0.02739108]
[1734954445159,0.00130325,95924.0,95918.0,0.02739035]
[1734954445563,0.00130325,95924.0,95919.0,0.10398632]
[1734954445796,0.00130313,95932.0,95923.0,0.002]
[1734954446044,0.00130313,95932.0,95924.0,0.10398632]
[1734954446265,0.00130313,95932.0,95924.0,0.13141294]
[1734954446546,0.208483,95931.0,95924.0,0.13141294]
[1734954446792,0.04312973,95930.0,95924.0,0.13141294]
[1734954448092,0.04312973,95930.0,95924.0,0.13241294]
[1734954448509,0.04312973,95930.0,95924.0,0.02842662]
[1734954448946,0.04312973,95930.0,95924.0,0.001]
[1734954449357,0.04312973,95930.0,95925.0,0.02741199]
[1734954449980,0.01127037,95929.0,95925.0,0.02741199]
[1734954450186,0.00130312,95928.0,95925.0,0.02741199]
[1734954450625,0.00130312,95928.0,95920.0,0.208506]
[1734954450831,0.00130312,95928.0,95921.0,0.10398632]
[1734954451244,0.00130313,95927.0,95922.0,0.02741417]
[1734954451451,0.001,95930.0,95925.0,0.002]
[1734954451452,0.00130313,95929.0,95925.0,0.002]
[1734954451690,0.04192581,95928.0,95925.0,0.002]
[1734954451895,0.00130313,95927.0,95926.0,0.02741126]
[1734954452324,0.00130313,95927.0,95921.0,0.10398632]
[1734954452553,0.00130313,95927.0,95926.0,0.02741126]
[1734954452768,0.00130313,95927.0,95913.0,0.2268369]
[1734954452769,0.04732272,95927.0,95913.0,0.0183159]
[1734954452981,0.00130313,95927.0,95926.0,0.02741126]
[1734954453194,0.20979419,95927.0,95926.0,0.02741126]
[1734954453410,0.208491,95927.0,95925.0,0.001]
[1734954453625,0.07970326,95926.0,95912.0,0.0183069]
[1734954453802,0.02881913,95925.0,95912.0,0.12229322]
[1734954454031,0.208506,95921.0,95912.0,0.12229322]
[1734954454230,0.00130326,95920.0,95912.0,0.12229322]
[1734954455263,0.208509,95919.0,95912.0,0.12429322]
[1734954455459,0.00130326,95918.0,95912.0,0.12229322]
[1734954455891,0.00130326,95918.0,95912.0,0.12529322]
[1734954456097,0.00130326,95924.0,95912.0,0.12529322]
[1734954456312,0.05255074,95923.0,95912.0,0.12629322]
[1734954456523,0.00130326,95922.0,95912.0,0.12629322]
[1734954456793,0.00130326,95922.0,95912.0,0.12529322]
[1734954457054,0.00130326,95922.0,95913.0,0.208522]
[1734954457515,0.00130326,95921.0,95913.0,0.208522]
[1734954457754,0.02386184,95921.0,95913.0,0.208522]
[1734954457959,0.00130326,95920.0,95913.0,0.208522]
[1734954458181,0.00130326,95920.0,95912.0,0.12429322]
[1734954458182,0.00130326,95920.0,95912.0,0.12229322]
[1734954458425,0.00130326,95924.0,95912.0,0.12229322]
[1734954458668,0.00130326,95924.0,95913.0,0.002]
[1734954458903,0.04471064,95923.0,95913.0,0.002]
[1734954459157,0.00130326,95922.0,95913.0,0.005]
[1734954459611,0.00130326,95922.0,95913.0,0.006]
[1734954459859,0.00130326,95922.0,95914.0,0.20852]
[1734954460356,0.00130325,95921.0,95914.0,0.20852]
[1734954460607,0.02503396,95924.0,95914.0,0.20852]
[1734954461119,0.208469,95938.0,95920.0,0.208506]
[1734954461344,0.00130313,95937.0,95924.0,0.208498]
[1734954461576,0.00130309,95945.0,95924.0,0.10398632]
[1734954461828,0.00130309,95944.0,95924.0,0.10398632]
[1734954462054,0.208461,95942.0,95925.0,0.208496]
[1734954462281,0.208468,95938.0,95925.0,0.208496]
[1734954462524,0.00530309,95937.0,95925.0,0.208496]
[1734954462777,0.00130309,95937.0,95925.0,0.208496]
[1734954464044,0.00230309,95937.0,95925.0,0.208496]
[1734954464276,0.04813845,95937.0,95925.0,0.208496]
[1734954464730,0.00330309,95937.0,95925.0,0.208496]
[1734954465389,0.208472,95936.0,95924.0,0.10407202]
[1734954465632,0.00130309,95935.0,95924.0,0.10407202]
[1734954466322,0.00130309,95935.0,95924.0,0.12221095]
[1734954466560,0.00130309,95934.0,95924.0,0.12221095]
[1734954467041,0.00130309,95934.0,95925.0,0.02817251]
[1734954467525,0.00130309,95933.0,95925.0,0.02817251]
[1734954467767,0.0804,95932.0,95925.0,0.02817251]
[1734954468005,0.00130309,95931.0,95924.0,0.12221095]
[1734954468283,0.208485,95930.0,95924.0,8.57e-05]
[1734954468509,0.00130319,95929.0,95924.0,8.57e-05]
[1734954469429,0.00130324,95928.0,95924.0,8.57e-05]
[1734954469670,0.00130324,95928.0,95924.0,0.0010857]
[1734954470151,0.00130324,95928.0,95924.0,8.57e-05]
[1734954470357,0.00130324,95928.0,95924.0,0.0010857]
[1734954470850,0.00230324,95928.0,95924.0,0.0010857]
[1734954471087,0.00130324,95928.0,95924.0,8.57e-05]
[1734954471321,0.05127026,95928.0,95924.0,8.57e-05]
[1734954471556,0.208491,95927.0,95924.0,8.57e-05]
[1734954471790,0.00130324,95926.0,95924.0,8.57e-05]
[1734954472553,0.208485,95930.0,95924.0,8.57e-05]
[1734954472788,0.001,95928.0,95924.0,8.57e-05]
[1734954472987,0.05127004,95927.0,95924.0,8.57e-05]
[1734954473707,0.05127004,95927.0,95924.0,0.0010857]
[1734954473953,0.05127004,95927.0,95924.0,8.57e-05]
[1734954474199,0.05127004,95927.0,95924.0,0.0010857]
[1734954475211,0.288368,95938.0,95924.0,0.0010857]
[1734954475446,0.00147451,95937.0,95924.0,0.31356802]
[1734954475642,0.00130309,95936.0,95925.0,0.23662298]
[1734954475882,0.0001714,95937.0,95925.0,0.23662298]
[1734954475883,0.00130309,95935.0,95925.0,0.23662298]
[1734954476361,0.00130309,95935.0,95925.0,0.02812698]
[1734954477049,0.00130309,95934.0,95926.0,0.208494]
[1734954477238,0.001,95935.0,95926.0,0.208494]
[1734954477476,0.00130309,95934.0,95926.0,0.02812625]
[1734954477715,0.00147449,95934.0,95924.0,0.31256802]
[1734954477885,0.00147449,95934.0,95927.0,0.02812553]
[1734954478093,0.00147449,95934.0,95924.0,0.31256802]
[1734954478372,0.00147449,95934.0,95928.0,0.0281248]
[1734954478566,0.00147449,95934.0,95924.0,0.31256802]
[1734954478750,0.00147449,95934.0,95929.0,0.02812407]
[1734954478962,0.00147449,95934.0,95928.0,0.208489]
[1734954479189,0.00147449,95934.0,95930.0,0.02812334]
[1734954479395,0.00147449,95934.0,95929.0,0.02812407]
[1734954479780,0.00147449,95934.0,95924.0,0.31256802]
[1734954479927,0.00147449,95934.0,95930.0,0.02812334]
[1734954480140,0.00147449,95934.0,95928.0,0.208489]
[1734954480377,0.00147449,95934.0,95931.0,0.02811723]
[1734954480602,0.00147449,95934.0,95932.0,0.0281165]
[1734954480809,0.00147449,95934.0,95924.0,0.31256802]
[1734954481046,0.0001714,95934.0,95933.0,0.02811577]
[1734954481281,0.0001714,95934.0,95924.0,0.31256802]
[1734954481510,0.0001714,95934.0,95933.0,0.02811577]
[1734954481730,0.0001714,95934.0,95924.0,0.52106602]
[1734954481991,0.0001714,95934.0,95928.0,0.208489]
[1734954482245,0.0001714,95934.0,95928.0,0.203569]
[1734954482459,0.0001714,95934.0,95929.0,0.02811869]
[1734954484650,0.22966079,95934.0,95924.0,0.10407202]
[1734954484885,0.208481,95932.0,95930.0,0.02811796]
[1734954485123,0.00130317,95931.0,95924.0,8.57e-05]
[1734954485363,0.208496,95925.0,95924.0,8.57e-05]
[1734954486577,0.24513356,95925.0,95924.0,8.57e-05]
[1734954486814,0.24513356,95925.0,95924.0,0.0010857]
[1734954487040,0.32373356,95925.0,95924.0,0.0010857]
[1734954488498,0.32373356,95925.0,95924.0,8.57e-05]
[1734954488739,0.32373356,95925.0,95924.0,0.0010857]
[1734954489173,0.32373356,95925.0,95924.0,8.57e-05]
[1734954489594,0.32573356,95925.0,95924.0,8.57e-05]
[1734954490665,0.32973356,95925.0,95924.0,8.57e-05]
[1734954491096,0.32373356,95925.0,95924.0,8.57e-05]
[1734954491276,0.47951988,95925.0,95924.0,8.57e-05]
[1734954491497,0.51166872,95925.0,95924.0,8.57e-05]
[1734954491724,0.50966872,95925.0,95924.0,8.57e-05]
[1734954492177,0.50766872,95925.0,95924.0,8.57e-05]
[1734954492395,0.51166872,95925.0,95924.0,8.57e-05]
[1734954492648,0.50966872,95925.0,95924.0,8.57e-05]
[1734954492885,0.51166872,95925.0,95924.0,8.57e-05]
[1734954493370,0.47951988,95925.0,95924.0,8.57e-05]
[1734954493618,0.51166636,95925.0,95924.0,8.57e-05]
[1734954493809,0.47951988,95925.0,95924.0,8.57e-05]
[1734954494103,0.51166656,95925.0,95924.0,8.57e-05]
[1734954494338,0.47551988,95925.0,95924.0,8.57e-05]
[1734954494581,0.57213831,95925.0,95924.0,8.57e-05]
[1734954495519,0.47951988,95925.0,95924.0,8.57e-05]
[1734954499603,0.57951988,95925.0,95924.0,8.57e-05]
[1734954500328,0.57951988,95925.0,95924.0,7e-07]
[1734954500574,0.72951988,95925.0,95924.0,7e-07]
[1734954500774,0.76162178,95925.0,95924.0,7e-07]
[1734954501091,0.75962178,95925.0,95924.0,7e-07]
[1734954501369,0.76162178,95925.0,95924.0,7e-07]
[1734954501587,0.76662178,95925.0,95924.0,7e-07]
[1734954501820,0.85924021,95925.0,95924.0,7e-07]
[1734954502059,0.85924021,95925.0,95924.0,3e-07]
[1734954504113,0.95924021,95925.0,95924.0,3e-07]
[1734954505296,0.95924021,95925.0,95912.0,5.339e-05]
[1734954505297,0.291722,95913.0,95912.0,5.339e-05]
[1734954505537,0.39570832,95913.0,95912.0,5.339e-05]
[1734954507790,0.40770832,95913.0,95912.0,0.00105339]
[1734954512189,0.43648044,95913.0,95912.0,0.00105339]
[1734954512690,0.68648044,95913.0,95912.0,0.00105339]
[1734954512980,0.93856676,95913.0,95912.0,3.9e-07]
[1734954513464,0.1,95907.0,95882.0,0.06114319]
[1734954513691,0.208583,95885.0,95882.0,0.06125451]
[1734954513943,0.02216207,95884.0,95883.0,0.0287252]
[1734954515152,0.208587,95883.0,95882.0,0.06125451]
[1734954516824,0.208566,95893.0,95882.0,0.06125451]
[1734954517049,0.00130375,95892.0,95882.0,0.06125451]
[1734954517278,0.208581,95886.0,95883.0,0.005]
[1734954517522,0.02229223,95885.0,95882.0,0.06325451]
[1734954517767,0.02098848,95885.0,95882.0,0.06525451]
[1734954518002,0.02098848,95885.0,95882.0,0.06125451]
[1734954518687,0.00130376,95884.0,95882.0,0.06125451]
[1734954518894,0.00130376,95884.0,95882.0,0.06425451]
[1734954519421,0.208587,95883.0,95882.0,0.00311132]
[1734954520350,0.208587,95883.0,95882.0,0.00111132]
[1734954520914,0.208587,95883.0,95882.0,0.00411132]
[1734954521150,0.208587,95883.0,95882.0,0.00211132]
[1734954521418,0.208587,95883.0,95882.0,0.03489186]
[1734954523150,0.2503035,95883.0,95882.0,0.03489186]
[1734954523761,0.2503035,95883.0,95882.0,0.03289186]
[1734954524720,0.208587,95883.0,95882.0,0.02889186]
[1734954527345,0.208587,95883.0,95882.0,0.02897756]
[1734954538675,0.2087584,95883.0,95882.0,0.02897756]
[1734954544719,0.0001714,95883.0,95882.0,0.15387756]
[1734954544923,0.0001714,95883.0,95882.0,0.4597112]
[1734954545145,0.0001714,95883.0,95882.0,0.48807267]
[1734954545792,0.0001714,95883.0,95882.0,0.85522728]
[1734954546605,0.0001714,95883.0,95882.0,1.20144324]
[1734954546823,7.14e-05,95883.0,95882.0,1.20244324]
[1734954547025,7.14e-05,95883.0,95882.0,1.20544324]
[1734954547450,0.0010714,95883.0,95882.0,1.21444324]
[1734954547670,7.14e-05,95883.0,95882.0,1.20144324]
[1734954547883,7.14e-05,95883.0,95882.0,1.20344324]
[1734954548090,7.14e-05,95883.0,95882.0,1.20444324]
[1734954548305,7.14e-05,95883.0,95882.0,1.32328292]
[1734954548542,0.0001714,95913.0,95910.0,0.208528]
[1734954548759,0.0001714,95913.0,95911.0,0.10751334]
[1734954549173,0.0001714,95913.0,95912.0,0.31251032]
[1734954549601,0.0001714,95913.0,95912.0,0.34391845]
[1734954550049,0.0001714,95913.0,95912.0,0.34402977]
[1734954550486,0.0001714,95913.0,95912.0,0.35490296]
[1734954550729,0.0001714,95913.0,95912.0,0.34402977]
[1734954551225,0.0001714,95913.0,95912.0,0.37334712]
[1734954551709,0.0001714,95913.0,95912.0,0.37434712]
[1734954551940,0.0001714,95913.0,95912.0,0.37334712]
[1734954552167,0.0011714,95913.0,95912.0,0.37934712]
[1734954552403,0.0011714,95913.0,95912.0,0.17082312]
[1734954552646,0.0011714,95913.0,95912.0,0.17282312]
[1734954559359,0.0011714,95913.0,95912.0,0.19582312]
[1734954560866,0.0011714,95913.0,95912.0,0.56297773]
[1734954561771,0.0011714,95913.0,95912.0,0.64497773]
[1734954562051,0.0011714,95913.0,95912.0,0.79497773]
[1734954562482,0.0011714,95913.0,95912.0,0.94277773]
[1734954562872,0.0011714,95913.0,95912.0,0.94819429]
[1734954563088,0.0001714,95913.0,95912.0,1.04219429]
[1734954563341,0.0081714,95913.0,95912.0,1.04319429]
[1734954563681,0.0081714,95913.0,95912.0,1.04119429]
[1734954564817,0.0001714,95913.0,95912.0,1.04019429]
[1734954565025,0.0071714,95913.0,95912.0,1.04019429]
[1734954565301,0.0041714,95913.0,95912.0,1.04019429]
[1734954565540,0.0001714,95913.0,95912.0,0.94019429]
[1734954565973,0.0021714,95913.0,95912.0,0.94019429]
[1734954566424,0.0001714,95913.0,95912.0,0.94019429]
[1734954566852,0.0021714,95913.0,95912.0,0.94019429]
[1734954567185,0.0021714,95913.0,95912.0,0.84019429]
[1734954568778,0.0021714,95913.0,95912.0,0.94019429]
[1734954569165,0.0021714,95913.0,95912.0,0.84019429]
[1734954572537,0.0021714,95913.0,95912.0,0.94019429]
[1734954574233,0.0021714,95913.0,95912.0,0.94436529]
[1734954574460,0.0001714,95913.0,95912.0,0.94436529]
[1734954574672,0.0011714,95913.0,95912.0,0.94436529]
[1734954574881,0.0031714,95913.0,95912.0,0.94436529]
[1734954575103,0.0011714,95913.0,95912.0,0.94436529]
[1734954575346,0.0031714,95913.0,95912.0,0.94436529]
[1734954575591,0.0051714,95913.0,95912.0,0.94436529]
[1734954579200,0.0051714,95913.0,95912.0,0.84436529]
[1734954580317,0.0051714,95913.0,95912.0,0.94436529]
[1734954581053,0.0031714,95913.0,95912.0,0.94436529]
[1734954581943,0.0001714,95913.0,95912.0,0.94436529]
[1734954582162,0.0051714,95913.0,95912.0,0.94436529]
[1734954586235,0.00488951,95913.0,95912.0,0.94436529]
[1734954586661,0.00488951,95913.0,95912.0,0.84436529]
[1734954586903,0.00488951,95913.0,95912.0,0.94436529]
[1734954587682,0.00488951,95913.0,95912.0,0.79656529]
[1734954587912,0.00488951,95913.0,95912.0,0.53614873]
[1734954588138,0.00488951,95913.0,95912.0,0.53197773]
[1734954588835,0.00288951,95913.0,95912.0,0.53197773]
[1734954589064,0.00130317,95922.0,95912.0,0.53197773]
[1734954589320,0.003,95913.0,95912.0,0.53297773]
[1734954589546,0.0832,95913.0,95912.0,0.53297773]
[1734954589771,0.1322,95913.0,95912.0,0.0618368]
[1734954589994,0.1292,95913.0,95912.0,0.0608368]
[1734954590205,0.1292,95913.0,95912.0,0.02942867]
[1734954590453,0.1292,95913.0,95912.0,0.03042867]
[1734954590716,0.1332,95913.0,95912.0,0.03042867]
[1734954590936,0.1332,95913.0,95912.0,0.06229849]
[1734954591165,0.1292,95913.0,95912.0,0.03042867]
[1734954591563,0.1292,95913.0,95912.0,0.03342867]
[1734954591972,0.1302,95913.0,95912.0,0.03842867]
[1734954592225,0.1302,95913.0,95912.0,0.03342867]
[1734954592425,0.1312,95913.0,95912.0,0.04242867]
[1734954593196,0.1292,95913.0,95912.0,0.06529849]
[1734954593397,0.1292,95913.0,95912.0,0.06929849]
[1734954593772,0.1292,95913.0,95912.0,0.06529849]
[1734954593981,0.1292,95913.0,95912.0,0.06829849]
[1734954594608,0.1292,95913.0,95912.0,0.06529849]
[1734954594933,0.1292,95913.0,95912.0,0.06329849]
[1734954595141,0.1292,95913.0,95912.0,0.06829849]
[1734954595333,0.1292,95913.0,95912.0,0.06329849]
[1734954596309,0.1302,95913.0,95912.0,0.06829849]
[1734954596939,0.1302,95913.0,95912.0,0.06629849]
[1734954597200,0.1302,95913.0,95912.0,0.06729849]
[1734954597385,0.1303714,95913.0,95912.0,0.06729849]
[1734954597588,0.1303714,95913.0,95912.0,0.03442867]
[1734954597924,0.1303714,95913.0,95912.0,0.06729849]
[1734954598098,0.1293714,95913.0,95912.0,0.06229849]
[1734954598322,0.1293714,95913.0,95912.0,0.06629849]
[1734954599131,0.1293714,95913.0,95912.0,0.06229849]
[1734954599644,0.1293714,95913.0,95912.0,0.06629849]
[1734954599839,0.1293714,95913.0,95912.0,0.06529849]
[1734954600183,0.1293714,95913.0,95912.0,0.06629849]
[1734954601686,0.0001714,95913.0,95912.0,0.17028481]
[1734954602598,0.0001714,95913.0,95912.0,0.34328481]
[1734954603041,0.0001714,95913.0,95912.0,0.71043942]
[1734954603771,0.0001714,95913.0,95912.0,0.70943942]
[1734954604198,0.0001714,95913.0,95912.0,0.71143942]
[1734954604925,0.0001714,95913.0,95912.0,0.70943942]
[1734954605941,0.0001714,95913.0,95912.0,0.71143942]
[1734954606368,0.0001714,95913.0,95912.0,0.70743942]
[1734954606548,0.0001714,95913.0,95912.0,0.71243942]
[1734954606892,0.0001714,95913.0,95912.0,0.70743942]
[1734954607325,0.0001714,95913.0,95912.0,0.71243942]
[1734954608596,0.0001714,95913.0,95912.0,0.34528481]
[1734954608790,0.0001714,95913.0,95912.0,0.88137051]
[1734954609744,0.0001714,95913.0,95912.0,0.34537051]
[1734954612043,0.0001714,95913.0,95912.0,0.88137051]
[1734954612726,0.0001714,95913.0,95912.0,0.96117051]
[1734954613402,0.0001714,95913.0,95912.0,0.88137051]
[1734954622879,0.0001714,95913.0,95912.0,1.22717624]
[1734954623754,0.0001714,95913.0,95912.0,1.41461808]
[1734954628527,0.0001714,95913.0,95912.0,1.22717624]
[1734954632077,0.0001714,95913.0,95912.0,1.20914502]
[1734954635951,0.0001714,95913.0,95912.0,1.44350912]
[1734954639267,0.0001714,95913.0,95912.0,1.20914502]
[1734954642383,0.0001714,95913.0,95912.0,1.20714502]
[1734954643178,0.0001714,95913.0,95912.0,1.20414502]
[1734954643404,0.0001714,95913.0,95912.0,1.20914502]
[1734954643616,0.0001714,95913.0,95912.0,1.20414502]
[1734954644016,0.0061714,95913.0,95912.0,1.20514502]
[1734954644232,0.0001714,95913.0,95912.0,1.20414502]
[1734954644653,0.0061714,95913.0,95912.0,1.20314502]
[1734954644911,0.0111714,95913.0,95912.0,1.20314502]
[1734954645284,0.0001712,95928.0,95915.0,0.173]
[1734954645497,0.0001712,95928.0,95927.0,0.231491]
[1734954645698,0.0001712,95928.0,95927.0,0.33547732]
[1734954645907,0.0001712,95928.0,95927.0,0.34930623]
[1734954646448,0.0021712,95928.0,95927.0,0.34930623]
[1734954647074,0.0021712,95928.0,95927.0,0.35430623]
[1734954647302,0.0021712,95928.0,95927.0,0.44810953]
[1734954647777,0.0001712,95928.0,95927.0,0.44810953]
[1734954647979,0.0001712,95928.0,95927.0,0.98610953]
[1734954648199,0.0001712,95928.0,95927.0,0.88730623]
[1734954648438,0.0001712,95928.0,95927.0,0.88530623]
[1734954648645,0.0001712,95928.0,95927.0,0.89130623]
[1734954648866,0.0001712,95928.0,95927.0,0.89430623]
[1734954650278,0.0001712,95928.0,95927.0,0.9122643]
[1734954653006,0.0001712,95928.0,95927.0,0.93312255]
[1734954654403,0.0001712,95928.0,95927.0,1.08312255]
[1734954657117,0.0001712,95928.0,95927.0,1.2238275]
[1734954657966,0.0001712,95928.0,95927.0,1.57025987]
[1734954659102,0.0001712,95928.0,95927.0,1.42955492]
[1734954661784,0.0001712,95928.0,95927.0,1.60555492]
[1734954662015,2e-07,95928.0,95927.0,1.75505492]
[1734954662712,2e-07,95928.0,95927.0,1.65205492]
[1734954662971,2e-07,95928.0,95927.0,1.39969667]
[1734954663153,0.0010002,95928.0,95927.0,1.40069667]
[1734954663599,2e-07,95928.0,95927.0,1.88431093]
[1734954663832,0.0010002,95928.0,95927.0,1.88431093]
[1734954664056,0.0020002,95928.0,95927.0,1.88431093]
[1734954664490,0.0030002,95928.0,95927.0,1.40069667]
[1734954667773,0.0030002,95928.0,95927.0,1.40078227]
[1734954671045,0.0030002,95928.0,95927.0,1.40845434]
[1734954672172,0.0030002,95928.0,95927.0,1.64289155]
[1734954674752,0.0030002,95928.0,95927.0,1.40845434]
[1734954680480,0.0030002,95928.0,95927.0,1.64291179]
[1734954681869,0.0030002,95928.0,95927.0,1.41142079]
[1734954682093,0.0801002,95928.0,95927.0,1.41142079]
[1734954682317,0.0801002,95928.0,95927.0,0.87542079]
[1734954682536,0.0801002,95928.0,95927.0,0.72542079]
[1734954682772,0.0801002,95928.0,95927.0,0.62143447]
[1734954683003,0.0801002,95928.0,95927.0,0.38697702]
[1734954683226,0.0801002,95928.0,95927.0,0.36901895]
[1734954683931,0.0801002,95928.0,95927.0,0.02258658]
[1734954684166,0.0781002,95928.0,95927.0,0.02258658]
[1734954684382,0.0771002,95928.0,95927.0,0.02158658]
[1734954684602,0.0771002,95928.0,95927.0,0.02558658]
[1734954685330,0.07840333,95928.0,95927.0,0.02558658]
[1734954685793,0.07840333,95928.0,95927.0,0.02158658]
[1734954686071,0.07840333,95928.0,95927.0,0.03458658]
[1734954686500,0.07840333,95928.0,95927.0,0.03058658]
[1734954686741,0.07840333,95928.0,95927.0,0.0140856]
[1734954687190,0.1328168,95928.0,95927.0,0.0140856]
[1734954687406,0.1328168,95928.0,95927.0,0.0160856]
[1734954690060,0.07840333,95928.0,95927.0,0.0160856]
[1734954690300,0.07840333,95928.0,95927.0,0.0376505]
[1734954690527,0.07840333,95928.0,95927.0,0.0160856]
[1734954690763,0.07840333,95928.0,95927.0,0.0376505]
[1734954690999,0.0771002,95928.0,95927.0,0.0160856]
[1734954691241,0.0771002,95928.0,95927.0,0.0376505]
[1734954691486,0.07840334,95928.0,95927.0,0.0160856]
[1734954691716,0.07840334,95928.0,95927.0,0.0376505]
[1734954691940,2e-07,95928.0,95927.0,0.0160856]
[1734954692136,2e-07,95928.0,95927.0,0.0376505]
[1734954692259,2e-07,95928.0,95927.0,0.0160856]
[1734954692627,0.00130334,95928.0,95927.0,0.0376505]
[1734954692892,2e-07,95928.0,95927.0,0.0376505]
[1734954694530,2e-07,95928.0,95927.0,0.36883682]
[1734954695515,2e-07,95928.0,95927.0,0.39183682]
[1734954695737,2e-07,95928.0,95927.0,0.92583682]
[1734954695964,2e-07,95928.0,95927.0,0.94889956]
[1734954696225,2e-07,95928.0,95927.0,1.03489956]
[1734954696445,0.0001316,95934.0,95933.0,0.358478]
[1734954696696,0.0001316,95934.0,95933.0,0.56616432]
[1734954696908,0.0001316,95934.0,95933.0,0.58767904]
[1734954697810,0.0001316,95934.0,95933.0,0.93359807]
[1734954700222,0.0001714,95937.0,95934.0,0.208476]
[1734954700466,0.0001714,95937.0,95936.0,0.48545832]
[1734954700893,0.0001714,95937.0,95936.0,0.50697016]
[1734954702272,0.0001714,95937.0,95936.0,1.38888919]
[1734954702491,0.0011714,95937.0,95936.0,1.38888919]
[1734954702912,0.0001714,95937.0,95936.0,1.38888919]
[1734954703347,0.0011714,95937.0,95936.0,1.38888919]
[1734954704103,0.0011714,95937.0,95936.0,1.46458919]
[1734954707508,0.0011714,95937.0,95936.0,1.50628719]
[1734954708300,0.0769,95966.0,95956.0,0.917428]
[1734954708534,0.0472,95970.0,95956.0,1.02141432]
[1734954708774,0.0472,95970.0,95956.0,1.04283177]
[1734954709658,0.00222476,95957.0,95956.0,1.04283177]
[1734954710116,0.00022476,95957.0,95956.0,1.04283177]
[1734954710340,0.00022476,95957.0,95956.0,1.05083177]
[1734954710958,0.00022476,95957.0,95956.0,1.06601138]
[1734954711963,0.00022476,95957.0,95956.0,1.07001138]
[1734954716877,0.048,95981.0,95978.0,0.208381]
[1734954717129,0.0007055,95979.0,95978.0,0.10398632]
[1734954717360,0.0007055,95979.0,95978.0,0.02134819]
[1734954717593,0.0828055,95979.0,95978.0,0.02134819]
[1734954717823,0.0828055,95979.0,95970.0,0.15]
[1734954718123,0.0013024,95978.0,95971.0,0.31238232]
[1734954718331,0.0828055,95979.0,95971.0,0.3337248]
[1734954720331,0.0828055,95979.0,95971.0,0.1253288]
[1734954721506,0.0828055,95979.0,95971.0,0.14015674]
[1734954725671,0.2096834,95978.0,95971.0,0.02134248]
[1734954725865,0.208385,95976.0,95971.0,0.02134248]
[1734954726066,0.208385,95976.0,95961.0,0.536]
[1734954726067,0.208391,95973.0,95961.0,0.536]
[1734954726342,0.208396,95971.0,95962.0,0.12529367]
[1734954726562,0.0832,95969.0,95962.0,0.12529367]
[1734954726792,0.208407,95966.0,95962.0,0.02130735]
[1734954727015,0.0801,95964.0,95962.0,0.02130735]
[1734954727255,0.0801,95964.0,95957.0,0.01515508]
[1734954727256,0.00130268,95963.0,95957.0,0.01515508]
[1734954727474,0.0013027,95962.0,95958.0,0.02130922]
[1734954727696,0.208418,95961.0,95958.0,0.02130922]
[1734954727920,0.1255,95959.0,95958.0,0.02130922]
[1734954729073,0.1255,95959.0,95958.0,0.02630922]
[1734954729294,0.12680268,95959.0,95958.0,0.02930922]
[1734954729514,0.12680268,95959.0,95958.0,0.008]
[1734954730408,0.18116595,95959.0,95958.0,0.008]
[1734954731275,0.12680268,95959.0,95958.0,0.008]
[1734954732307,0.12680268,95959.0,95957.0,8.56e-05]
[1734954732308,0.208424,95958.0,95957.0,8.56e-05]